bitfinex/quotes_BTCUSD_20250303
["timestamp","ask_amount","ask_price","bid_price","bid_amount"]
[1741022287603,0.32877141,90579.0,90578.0,0.4799428]
[1741022287972,0.00537141,90579.0,90578.0,0.49448365]
[1741022288161,0.0001699,90584.0,90578.0,0.49448365]
[1741022288162,3.1e-07,90584.0,90583.0,0.465593]
[1741022288369,0.00039561,90584.0,90583.0,0.48013385]
[1741022289147,0.00039561,90584.0,90583.0,0.465593]
[1741022289343,0.00039561,90584.0,90583.0,0.3]
[1741022289548,0.00039561,90584.0,90583.0,0.007]
[1741022289898,0.14639561,90584.0,90583.0,0.014]
[1741022290269,0.14639561,90584.0,90583.0,0.007]
[1741022290634,0.1,90579.0,90578.0,0.0003398]
[1741022291097,0.2,90579.0,90578.0,0.0003398]
[1741022291252,0.442701,90579.0,90578.0,0.0003398]
[1741022291451,0.2771,90579.0,90578.0,0.0003398]
[1741022292301,0.2771,90579.0,90578.0,0.0073398]
[1741022292455,0.2771,90579.0,90578.0,0.0003398]
[1741022293601,0.1771,90579.0,90578.0,0.1659428]
[1741022293825,0.2771,90579.0,90578.0,0.1729428]
[1741022294282,0.6005,90579.0,90578.0,0.0073398]
[1741022294451,0.6005,90579.0,90578.0,0.1729428]
[1741022294712,0.4005,90579.0,90578.0,0.1729428]
[1741022294907,0.5005,90579.0,90578.0,0.1729428]
[1741022295409,0.00039561,90584.0,90578.0,0.1799428]
[1741022295609,0.3238,90599.0,90598.0,0.465566]
[1741022295610,0.0004,90599.0,90598.0,0.465566]
[1741022295759,0.0004,90599.0,90598.0,0.48010685]
[1741022295925,0.00051854,90599.0,90598.0,0.48010685]
[1741022297554,0.00051854,90599.0,90598.0,0.49410685]
[1741022297768,0.00051854,90599.0,90598.0,0.48710685]
[1741022298369,5.4e-07,90599.0,90598.0,0.49410685]
[1741022303422,0.00051852,90639.0,90638.0,0.465493]
[1741022303808,0.00051852,90639.0,90638.0,0.472493]
[1741022304059,0.00051852,90639.0,90638.0,0.307]
[1741022304258,0.00051852,90639.0,90610.0,0.28148141]
[1741022304567,0.00051852,90639.0,90638.0,0.179493]
[1741022304922,0.00051852,90639.0,90638.0,0.172493]
[1741022305325,0.00051852,90639.0,90638.0,0.165493]
[1741022305552,0.00051852,90639.0,90624.0,2.2072438]
[1741022305553,0.00051852,90639.0,90624.0,0.01192138]
[1741022305838,0.4,90638.0,90601.0,1.09777619]
[1741022306192,0.165517,90625.0,90611.0,0.165542]
[1741022306370,0.299986,90627.0,90612.0,0.16554]
[1741022306538,0.5937,90626.0,90590.0,0.28148141]
[1741022306737,0.220695,90623.0,90608.0,0.165547]
[1741022306968,0.68278,90622.0,90604.0,0.09755493]
[1741022308798,0.55178141,90590.0,90578.0,0.00045834]
[1741022309003,0.165586,90588.0,90578.0,0.00045834]
[1741022309232,0.2703,90590.0,90578.0,0.00045834]
[1741022309786,0.08908,90589.0,90578.0,0.00045834]
[1741022310214,0.254663,90589.0,90578.0,0.00045834]
[1741022310436,0.165585,90588.0,90578.0,0.00045834]
[1741022310632,0.165587,90587.0,90578.0,0.01445834]
[1741022310834,0.165601,90579.0,90578.0,0.00745834]
[1741022311012,0.759301,90579.0,90578.0,0.01445834]
[1741022311215,0.759301,90579.0,90578.0,0.00745834]
[1741022311420,0.806201,90579.0,90578.0,0.00745834]
[1741022311617,0.882601,90579.0,90578.0,0.01445834]
[1741022312408,0.165656,90549.0,90517.0,0.02186499]
[1741022312629,0.971236,90549.0,90548.0,0.0007353]
[1741022313852,0.972236,90549.0,90548.0,0.0077353]
[1741022314013,0.972236,90549.0,90548.0,0.0007353]
[1741022314378,0.974236,90549.0,90548.0,0.0147353]
[1741022314580,0.98954965,90549.0,90548.0,0.0077353]
[1741022315007,1.29805037,90549.0,90548.0,0.0077353]
[1741022315943,1.29805037,90549.0,90500.0,0.0003402]
[1741022315944,0.465663,90545.0,90501.0,0.220989]
[1741022316146,0.465663,90545.0,90500.0,0.0003402]
[1741022316147,0.242811,90519.0,90500.0,0.0003402]
[1741022316357,0.242811,90519.0,90518.0,0.00211861]
[1741022316358,0.75992,90519.0,90518.0,0.00211861]
[1741022316899,0.77723862,90519.0,90518.0,0.00211861]
[1741022317101,0.68811862,90519.0,90518.0,0.16783061]
[1741022317328,0.61101862,90519.0,90518.0,0.16783061]
[1741022317526,0.3234,90531.0,90530.0,0.16569]
[1741022317726,0.3234,90531.0,90518.0,0.00211861]
[1741022317727,0.3234,90531.0,90518.0,0.01111861]
[1741022318368,0.165696,90528.0,90518.0,0.01111861]
[1741022318572,0.220921,90530.0,90518.0,0.01111861]
[1741022318891,0.220923,90529.0,90518.0,0.01111861]
[1741022319128,0.5937,90531.0,90528.0,0.165694]
[1741022319264,0.5937,90531.0,90530.0,0.16369]
[1741022319661,0.5937,90531.0,90528.0,0.165694]
[1741022319662,0.5937,90531.0,90518.0,0.00711861]
[1741022319864,0.001,90530.0,90518.0,0.00511861]
[1741022320091,0.001,90529.0,90518.0,0.00645841]
[1741022320293,0.001,90529.0,90528.0,0.165694]
[1741022320491,0.001,90529.0,90528.0,0.465694]
[1741022320671,0.001,90531.0,90524.0,0.220933]
[1741022320672,0.001,90531.0,90527.0,0.520928]
[1741022320989,0.002,90531.0,90530.0,0.16569]
[1741022322168,0.001,90531.0,90530.0,0.47923085]
[1741022322374,0.3234,90564.0,90543.0,0.31454085]
[1741022322592,0.3234,90567.0,90564.0,0.220836]
[1741022322792,0.3234,90567.0,90542.0,0.01454085]
[1741022323011,0.3234,90567.0,90559.0,0.165636]
[1741022323196,0.3234,90567.0,90549.0,0.218873]
[1741022323392,0.3234,90567.0,90552.0,0.3]
[1741022323572,0.3234,90567.0,90552.0,0.520867]
[1741022323943,0.3244,90567.0,90564.0,0.005]
[1741022324085,0.5937,90566.0,90564.0,0.005]
[1741022324687,0.759325,90566.0,90564.0,0.005]
[1741022324910,0.5937,90566.0,90564.0,0.005]
[1741022325108,0.5937,90566.0,90553.0,0.3]
[1741022325109,0.5937,90566.0,90565.0,0.165626]
[1741022326052,0.5947,90566.0,90564.0,0.007]
[1741022326171,0.5937,90566.0,90552.0,0.3]
[1741022326636,0.5957,90566.0,90565.0,0.014]
[1741022326838,0.761325,90566.0,90565.0,0.007]
[1741022327051,0.761325,90566.0,90512.0,0.411246]
[1741022327052,0.5947,90566.0,90526.0,0.00814155]
[1741022327372,0.28148141,90550.0,90526.0,0.00814155]
[1741022327506,0.165666,90544.0,90526.0,0.00814155]
[1741022327712,0.3234,90543.0,90531.0,0.165688]
[1741022328028,0.3234,90543.0,90518.0,0.01426082]
[1741022328029,0.5937,90543.0,90518.0,0.01426082]
[1741022328437,0.5937,90543.0,90536.0,0.165678]
[1741022328638,0.5937,90543.0,90538.0,0.165674]
[1741022328639,0.2703,90542.0,90538.0,0.165674]
[1741022328916,0.2703,90542.0,90518.0,0.01426082]
[1741022329121,0.2703,90542.0,90531.0,0.007]
[1741022329272,0.28148141,90540.0,90518.0,0.01426082]
[1741022329469,0.4043,90541.0,90518.0,0.01451317]
[1741022329672,0.4043,90541.0,90536.0,0.007]
[1741022329871,0.4043,90541.0,90536.0,0.005]
[1741022330303,0.01731413,90540.0,90531.0,0.007]
[1741022330509,0.01831413,90540.0,90531.0,0.007]
[1741022330907,0.01831413,90540.0,90539.0,0.165674]
[1741022331251,0.01831413,90540.0,90531.0,0.007]
[1741022331459,0.01831413,90540.0,90529.0,0.16569]
[1741022331671,0.01831413,90540.0,90518.0,0.01951317]
[1741022331853,0.01731413,90540.0,90539.0,0.165674]
[1741022332388,0.01831413,90540.0,90539.0,0.165674]
[1741022332675,0.01831413,90540.0,90526.0,0.3]
[1741022332676,0.01731413,90540.0,90526.0,0.3]
[1741022332989,0.3244,90540.0,90520.0,0.3]
[1741022333122,0.3244,90540.0,90518.0,0.01951317]
[1741022333330,0.220903,90538.0,90518.0,0.01951317]
[1741022333523,0.3244,90540.0,90518.0,0.01451317]
[1741022333724,0.3244,90540.0,90531.0,0.00034]
[1741022333924,0.3254,90540.0,90531.0,0.00034]
[1741022334429,0.165683,90534.0,90531.0,0.00034]
[1741022334626,0.165687,90532.0,90531.0,0.00045861]
[1741022334831,0.291487,90532.0,90531.0,0.00045861]
[1741022335419,0.885187,90532.0,90531.0,0.00045861]
[1741022336258,0.887187,90532.0,90531.0,0.01045861]
[1741022336592,0.90450446,90532.0,90531.0,0.00545861]
[1741022336742,0.90350446,90532.0,90531.0,0.00445861]
[1741022336950,0.73781746,90532.0,90531.0,0.00445861]
[1741022337148,0.73781746,90532.0,90531.0,0.00645861]
[1741022337369,0.82693746,90532.0,90531.0,0.00645861]
[1741022338380,0.99162446,90532.0,90531.0,0.00045861]
[1741022338584,0.99262446,90532.0,90531.0,0.00645861]
[1741022338787,0.99362446,90532.0,90531.0,0.01145861]
[1741022339135,0.99362446,90532.0,90531.0,0.00045861]
[1741022339136,0.50833746,90532.0,90531.0,0.00045861]
[1741022339263,0.43083746,90532.0,90531.0,0.17114761]
[1741022339469,0.43183746,90532.0,90531.0,0.17214761]
[1741022339652,0.41452,90532.0,90531.0,0.17214761]
[1741022339852,0.41452,90532.0,90531.0,0.17014761]
[1741022340056,0.41352,90532.0,90531.0,0.17214761]
[1741022340295,0.41452,90532.0,90531.0,0.00645861]
[1741022340495,0.580207,90532.0,90531.0,0.00645861]
[1741022340699,0.41452,90532.0,90531.0,0.00645861]
[1741022340872,0.3254,90532.0,90531.0,0.17214761]
[1741022341072,0.002,90532.0,90531.0,0.17214761]
[1741022341272,0.002,90532.0,90531.0,0.00645861]
[1741022341475,0.002,90532.0,90531.0,0.00545861]
[1741022341476,0.003,90532.0,90531.0,0.00545861]
[1741022341685,0.002,90532.0,90531.0,0.17114761]
[1741022341886,0.003,90532.0,90531.0,0.17814761]
[1741022342527,0.003,90532.0,90531.0,0.01245861]
[1741022342870,0.003,90532.0,90531.0,0.17814761]
[1741022343074,0.003,90532.0,90531.0,0.01245861]
[1741022343298,0.08912,90547.0,90531.0,0.00045861]
[1741022343472,0.001,90532.0,90531.0,0.00745861]
[1741022343672,0.001,90532.0,90531.0,0.48768846]
[1741022344696,0.001,90532.0,90531.0,0.46614761]
[1741022344893,0.3234,90558.0,90531.0,0.00045861]
[1741022347403,0.0001699,90579.0,90578.0,0.165603]
[1741022347723,0.0001699,90579.0,90578.0,0.164603]
[1741022348354,0.0001699,90579.0,90578.0,1.27692004]
[1741022348553,0.00056495,90579.0,90578.0,1.27692004]
[1741022349176,0.00056495,90579.0,90578.0,1.58392004]
[1741022349379,9.5e-07,90579.0,90578.0,1.79858607]
[1741022349579,9.5e-07,90579.0,90578.0,1.59596607]
[1741022350459,9.5e-07,90579.0,90578.0,0.49818988]
[1741022351082,9.5e-07,90579.0,90578.0,0.50518988]
[1741022351287,9.5e-07,90579.0,90578.0,1.60296607]
[1741022352082,9.5e-07,90579.0,90578.0,0.50518988]
[1741022353804,9.5e-07,90579.0,90578.0,0.02604603]
[1741022354080,9.5e-07,90579.0,90578.0,0.19164903]
[1741022354442,9.5e-07,90579.0,90578.0,0.179603]
[1741022354837,9.5e-07,90579.0,90578.0,0.007]
[1741022355047,0.32340095,90579.0,90578.0,0.014]
[1741022355446,0.32340095,90579.0,90578.0,0.179603]
[1741022355622,0.32340095,90579.0,90578.0,0.014]
[1741022355827,0.32340095,90579.0,90578.0,0.179603]
[1741022356023,0.32340095,90579.0,90578.0,0.479603]
[1741022356293,0.32340095,90579.0,90578.0,0.48714385]
[1741022356678,0.32340095,90579.0,90578.0,0.49414385]
[1741022356879,0.32340095,90579.0,90578.0,0.48714385]
[1741022357326,9.5e-07,90579.0,90578.0,0.48714385]
[1741022358088,0.00013095,90579.0,90578.0,0.49214385]
[1741022358703,0.00013095,90579.0,90578.0,0.48714385]
[1741022358898,0.00013095,90579.0,90578.0,0.48014385]
[1741022359238,0.00013095,90579.0,90578.0,0.48714385]
[1741022359419,0.00013095,90579.0,90578.0,0.48014385]
[1741022359744,0.00013095,90579.0,90578.0,0.48714385]
[1741022360292,0.00013095,90579.0,90578.0,0.49414385]
[1741022361573,0.00013095,90579.0,90578.0,0.48714385]
[1741022362104,0.00013095,90579.0,90578.0,0.479603]
[1741022362275,0.00013095,90579.0,90578.0,0.014]
[1741022362452,0.32353095,90579.0,90578.0,0.014]
[1741022362651,0.32353095,90579.0,90578.0,0.179603]
[1741022363054,0.32353095,90579.0,90578.0,0.172603]
[1741022363586,0.32353095,90579.0,90578.0,0.179603]
[1741022363947,0.32353095,90579.0,90578.0,0.172603]
[1741022364780,0.32353095,90579.0,90578.0,0.18714385]
[1741022365181,0.32353095,90579.0,90578.0,0.19414385]
[1741022365394,0.00013095,90579.0,90578.0,0.18714385]
[1741022365924,0.00013095,90579.0,90578.0,0.19414385]
[1741022366125,0.00013095,90579.0,90578.0,0.48014385]
[1741022366486,0.00013095,90579.0,90578.0,0.49414385]
[1741022369241,0.00013095,90579.0,90578.0,0.49448365]
[1741022369708,0.00013095,90579.0,90578.0,0.1799428]
[1741022370463,0.00013095,90579.0,90578.0,0.19448365]
[1741022371213,0.2703,90603.0,90579.0,0.01454085]
[1741022371420,0.3234,90604.0,90603.0,0.165557]
[1741022371590,0.0752,90611.0,90609.0,0.165546]
[1741022371591,0.3234,90610.0,90609.0,0.165546]
[1741022371792,0.3234,90610.0,90609.0,0.0117442]
[1741022371988,0.3234,90610.0,90601.0,0.220745]
[1741022372193,0.3234,90610.0,90609.0,0.165546]
[1741022373110,0.3234,90610.0,90603.0,0.220742]
[1741022373315,0.3234,90610.0,90601.0,0.007]
[1741022373768,0.3234,90610.0,90602.0,0.165559]
[1741022374096,0.3234,90610.0,90601.0,0.007]
[1741022374475,0.165549,90608.0,90601.0,0.007]
[1741022374641,0.16555,90607.0,90601.0,0.007]
[1741022375169,0.165559,90602.0,90601.0,0.007]
[1741022375580,0.220752,90600.0,90589.0,0.01202315]
[1741022375781,0.01730128,90605.0,90588.0,0.3]
[1741022375970,0.01730128,90605.0,90604.0,0.165555]
[1741022376159,0.01730128,90605.0,90588.0,0.31157]
[1741022376362,0.01730128,90605.0,90598.0,0.165565]
[1741022376559,0.01730128,90605.0,90601.0,0.014]
[1741022376981,0.01730128,90605.0,90601.0,0.007]
[1741022377292,0.3234,90604.0,90601.0,0.007]
[1741022377677,0.3234,90604.0,90603.0,0.165557]
[1741022379023,0.3234,90604.0,90603.0,0.172557]
[1741022379780,0.3234,90604.0,90603.0,0.179557]
[1741022379984,0.3234,90604.0,90603.0,0.172557]
[1741022380415,0.3234,90604.0,90603.0,0.472557]
[1741022380614,0.3234,90604.0,90603.0,0.48709785]
[1741022381564,0.3234,90604.0,90603.0,0.49409785]
[1741022381806,0.3234,90604.0,90603.0,0.465557]
[1741022382030,0.3234,90604.0,90603.0,0.472557]
[1741022382151,0.3234,90604.0,90603.0,0.314]
[1741022382712,0.3234,90604.0,90603.0,0.3]
[1741022382913,0.3234,90604.0,90603.0,0.307]
[1741022383151,0.3234,90604.0,90603.0,0.014]
[1741022383339,0.3234,90607.0,90603.0,0.014]
[1741022383754,0.3234,90607.0,90603.0,0.234741]
[1741022383951,0.3234,90607.0,90603.0,0.014]
[1741022384295,0.3234,90607.0,90603.0,0.007]
[1741022384499,0.3234,90607.0,90603.0,0.014]
[1741022384901,0.3234,90607.0,90604.0,0.165554]
[1741022385140,0.3234,90607.0,90588.0,0.01157]
[1741022385296,0.3234,90607.0,90603.0,0.014]
[1741022385503,0.3234,90607.0,90606.0,0.165551]
[1741022385997,0.3234,90607.0,90605.0,0.02052269]
[1741022386954,0.165551,90606.0,90605.0,0.02052269]
[1741022387166,0.3234,90607.0,90606.0,0.02052269]
[1741022387338,0.48895,90607.0,90606.0,0.02052269]
[1741022388369,0.56895,90607.0,90606.0,0.02052269]
[1741022388581,0.165584,90589.0,90578.0,0.0003398]
[1741022388805,0.3234,90599.0,90579.0,0.01185078]
[1741022389024,0.3234,90599.0,90598.0,0.165566]
[1741022389162,0.3234,90605.0,90604.0,0.165555]
[1741022390247,0.3234,90605.0,90604.0,0.465555]
[1741022390935,0.3234,90605.0,90604.0,0.3]
[1741022391143,0.3234,90605.0,90604.0,0.48606193]
[1741022391343,0.0001699,90610.0,90609.0,0.18008685]
[1741022391578,0.0001699,90610.0,90609.0,0.48008685]
[1741022391688,0.3234,90629.0,90617.0,0.3]
[1741022391898,0.3234,90636.0,90631.0,0.465506]
[1741022392374,0.3234,90636.0,90631.0,0.3]
[1741022392646,0.3234,90636.0,90631.0,0.32050693]
[1741022393447,0.488897,90636.0,90631.0,0.32050693]
[1741022393647,0.488897,90636.0,90631.0,0.02050693]
[1741022393648,0.3234,90636.0,90631.0,0.02050693]
[1741022393950,0.220668,90634.0,90631.0,0.02050693]
[1741022394108,0.220668,90634.0,90631.0,0.01950693]
[1741022394311,0.167514,90632.0,90631.0,0.01950693]
[1741022394947,0.00201,90632.0,90631.0,0.02650693]
[1741022395130,0.490914,90632.0,90631.0,0.02650693]
[1741022395334,0.32541,90632.0,90631.0,0.02650693]
[1741022395597,0.490914,90632.0,90631.0,0.02650693]
[1741022395718,0.32541,90632.0,90631.0,0.02650693]
[1741022395916,0.3255802,90632.0,90631.0,0.03350693]
[1741022396156,0.3255802,90632.0,90631.0,0.19901293]
[1741022397357,0.3255802,90632.0,90631.0,0.03350693]
[1741022397562,0.3255802,90632.0,90631.0,0.02650693]
[1741022397761,0.3255802,90632.0,90631.0,0.18501293]
[1741022398078,0.3255802,90632.0,90631.0,0.19201293]
[1741022398509,0.3255802,90632.0,90631.0,0.02650693]
[1741022398662,0.3255802,90632.0,90631.0,0.19201293]
[1741022398859,0.3255802,90632.0,90631.0,0.18501293]
[1741022399071,0.0021802,90632.0,90631.0,0.49901293]
[1741022400012,0.0021802,90632.0,90631.0,0.49404685]
[1741022400514,0.0021802,90632.0,90631.0,0.472506]
[1741022400814,0.0021802,90632.0,90631.0,0.307]
[1741022401208,0.0021802,90632.0,90631.0,0.479506]
[1741022401408,0.0021802,90632.0,90631.0,0.49404685]
[1741022401711,0.0021802,90632.0,90631.0,0.472506]
[1741022401915,0.0021802,90632.0,90631.0,0.307]
[1741022402159,0.4910842,90632.0,90631.0,0.014]
[1741022402360,0.6226842,90632.0,90631.0,0.014]
[1741022402498,0.90461259,90632.0,90631.0,0.014]
[1741022402703,0.9102795,90632.0,90631.0,0.014]
[1741022403028,0.90494439,90632.0,90631.0,0.014]
[1741022403411,0.90494439,90632.0,90604.0,0.0981894]
[1741022403412,0.28148141,90620.0,90604.0,0.0981894]
[1741022403644,0.08896,90619.0,90604.0,0.0981894]
[1741022403848,0.241153,90605.0,90604.0,0.0981894]
[1741022404104,0.564553,90605.0,90604.0,0.0981894]
[1741022404309,0.399,90605.0,90604.0,0.0981894]
[1741022404446,0.564553,90605.0,90604.0,0.0981894]
[1741022404847,0.3234,90605.0,90604.0,0.2637444]
[1741022405272,0.3234,90605.0,90604.0,0.1051894]
[1741022405473,0.165553,90605.0,90604.0,0.1051894]
[1741022405785,0.22825356,90605.0,90604.0,0.1051894]
[1741022406154,0.22825356,90605.0,90604.0,0.007]
[1741022406561,0.22925356,90605.0,90604.0,0.014]
[1741022406839,0.22825356,90605.0,90604.0,0.007]
[1741022407049,0.06270056,90605.0,90578.0,0.0003398]
[1741022407257,0.0772,90599.0,90579.0,0.00045828]
[1741022407458,0.165599,90580.0,90579.0,0.00045828]
[1741022407664,0.3234,90580.0,90579.0,0.00045828]
[1741022408072,0.3234,90580.0,90579.0,0.16605928]
[1741022408273,0.3234,90580.0,90579.0,0.48005928]
[1741022408476,0.3234,90580.0,90579.0,0.47305928]
[1741022408720,0.3234,90580.0,90579.0,0.48760013]
[1741022408894,0.3234,90580.0,90579.0,0.48060013]
[1741022409104,0.3234,90580.0,90579.0,0.46605928]
[1741022409281,0.3234,90580.0,90579.0,0.30045828]
[1741022409480,0.488999,90580.0,90579.0,0.00045828]
[1741022409878,0.001,90580.0,90579.0,0.17305928]
[1741022410119,0.3234,90588.0,90587.0,0.465586]
[1741022410330,0.3234,90608.0,90607.0,0.16455]
[1741022410531,0.3234,90617.0,90594.0,0.01454085]
[1741022410831,0.089,90621.0,90620.0,0.165526]
[1741022411139,0.3234,90621.0,90620.0,0.49112746]
[1741022411383,0.3234,90621.0,90620.0,0.47558661]
[1741022411500,0.3234,90621.0,90620.0,0.31106061]
[1741022411709,0.3234,90621.0,90595.0,0.22076]
[1741022411710,0.3234,90621.0,90587.0,0.096]
[1741022412127,0.3234,90621.0,90605.0,0.02048418]
[1741022412819,0.3234,90621.0,90620.0,0.165526]
[1741022413032,0.34069647,90630.0,90629.0,0.165509]
[1741022413819,0.34069647,90630.0,90610.0,0.02048418]
[1741022413954,0.34069647,90630.0,90625.0,0.164516]
[1741022414150,0.34069647,90630.0,90622.0,0.3]
[1741022414391,0.34069647,90630.0,90612.0,0.3]
[1741022414610,0.34069647,90630.0,90621.0,0.165522]
[1741022414813,0.34169647,90630.0,90629.0,0.007]
[1741022414975,0.50720447,90630.0,90629.0,0.007]
[1741022415178,0.34169647,90630.0,90629.0,0.007]
[1741022415577,0.34069647,90630.0,90620.0,0.007]
[1741022415779,0.3244,90630.0,90622.0,0.165522]
[1741022416002,0.001,90630.0,90629.0,0.165509]
[1741022416201,0.001,90630.0,90629.0,0.48704985]
[1741022416403,0.001,90630.0,90629.0,0.48004985]
[1741022416783,0.001,90630.0,90629.0,0.48704985]
[1741022417136,0.0021802,90632.0,90631.0,0.48004685]
[1741022417506,0.0021802,90632.0,90631.0,0.47904685]
[1741022418423,0.0031802,90632.0,90631.0,0.307]
[1741022419659,0.0031802,90632.0,90631.0,0.3073402]
[1741022420022,0.0031802,90632.0,90631.0,0.3143402]
[1741022420751,0.8410842,90632.0,90631.0,0.0143402]
[1741022421879,0.8400842,90632.0,90631.0,0.0003402]
[1741022422088,0.8400842,90632.0,90631.0,0.0053402]
[1741022422276,0.8400842,90632.0,90631.0,0.0123402]
[1741022422475,0.8400842,90632.0,90631.0,0.0053402]
[1741022422801,0.8410842,90632.0,90631.0,0.0113402]
[1741022423004,0.8867842,90632.0,90631.0,0.0113402]
[1741022423217,0.73283013,90632.0,90593.0,0.01157898]
[1741022423412,0.28148141,90610.0,90590.0,0.00011848]
[1741022423678,0.165579,90591.0,90590.0,0.00011848]
[1741022423917,0.254539,90591.0,90590.0,0.00011848]
[1741022424153,0.08896,90591.0,90590.0,0.00011848]
[1741022424370,0.25647108,90591.0,90590.0,0.00011848]
[1741022424595,0.254539,90591.0,90590.0,0.00011848]
[1741022424776,0.848239,90591.0,90590.0,0.00011848]
[1741022425333,0.848239,90591.0,90590.0,0.00511848]
[1741022426467,0.848239,90591.0,90590.0,0.01111848]
[1741022426468,0.86654313,90591.0,90590.0,0.01111848]
[1741022428001,0.849239,90591.0,90590.0,0.01111848]
[1741022428137,0.68366,90591.0,90590.0,0.01111848]
[1741022428769,0.5947,90591.0,90590.0,0.01111848]
[1741022428959,0.3244,90591.0,90590.0,0.01111848]
[1741022429379,0.489979,90591.0,90590.0,0.01111848]
[1741022429762,0.759279,90591.0,90590.0,0.00511848]
[1741022430163,0.760279,90591.0,90590.0,0.01111848]
[1741022430421,0.5947,90591.0,90590.0,0.00011848]
[1741022430544,0.3254,90591.0,90590.0,0.01311848]
[1741022430746,0.41536,90591.0,90590.0,0.01311848]
[1741022431042,0.41436,90591.0,90590.0,0.00611848]
[1741022431251,0.579939,90591.0,90590.0,0.00911848]
[1741022431467,0.41436,90591.0,90590.0,0.00911848]
[1741022431894,0.41236,90591.0,90590.0,0.00045868]
[1741022432092,0.41336,90591.0,90590.0,0.01245868]
[1741022432324,0.41823642,90591.0,90590.0,0.01245868]
[1741022432545,0.41823642,90591.0,90590.0,0.00745868]
[1741022432742,0.41923642,90591.0,90590.0,0.01445868]
[1741022433302,0.58481542,90591.0,90590.0,0.01445868]
[1741022433725,0.68953642,90591.0,90590.0,0.01445868]
[1741022435063,0.60057642,90591.0,90590.0,0.01445868]
[1741022435261,0.60057642,90591.0,90590.0,0.18003968]
[1741022435582,0.33027642,90591.0,90590.0,0.18003968]
[1741022435795,0.00687642,90591.0,90590.0,0.49458053]
[1741022436132,0.002,90591.0,90590.0,0.31445868]
[1741022436335,0.002,90591.0,90590.0,0.48003968]
[1741022436719,0.001,90591.0,90590.0,0.47303968]
[1741022436922,0.001,90591.0,90590.0,0.30745868]
[1741022437118,0.001,90591.0,90590.0,0.31445868]
[1741022437530,0.001,90591.0,90590.0,0.47303968]
[1741022437939,0.001,90591.0,90590.0,0.31445868]
[1741022438362,0.001,90591.0,90590.0,0.30745868]
[1741022438597,0.001,90591.0,90590.0,0.47303968]
[1741022438846,0.220713,90616.0,90590.0,0.30045868]
[1741022439058,0.759236,90615.0,90596.0,0.165568]
[1741022439189,0.165545,90610.0,90592.0,0.165577]
[1741022439411,0.76414801,90615.0,90590.0,0.30045868]
[1741022439617,0.0049476,90609.0,90590.0,0.30745868]
[1741022439852,0.0049476,90608.0,90595.0,0.16557]
[1741022440049,0.0049476,90608.0,90590.0,0.30745868]
[1741022440259,0.0019315,90607.0,90596.0,0.006]
[1741022440468,0.0049476,90607.0,90590.0,0.30045868]
[1741022440673,0.0049476,90607.0,90590.0,0.30545868]
[1741022440883,0.5937,90615.0,90598.0,0.220754]
[1741022441084,0.5937,90615.0,90590.0,0.30745868]
[1741022441291,0.165539,90613.0,90596.0,0.006]
[1741022441494,0.00193151,90614.0,90596.0,0.006]
[1741022441723,0.0049476,90613.0,90596.0,0.006]
[1741022441931,0.220732,90608.0,90596.0,0.006]
[1741022442137,0.165558,90603.0,90596.0,0.006]
[1741022442353,0.01730114,90606.0,90596.0,0.013]
[1741022442586,0.165568,90597.0,90596.0,0.006]
[1741022442755,0.3234,90597.0,90590.0,0.00045868]
[1741022442966,0.165575,90593.0,90590.0,0.00045868]
[1741022443174,0.52483,90596.0,90590.0,0.00545868]
[1741022443383,0.35926,90596.0,90590.0,0.00545868]
[1741022443653,0.165579,90591.0,90590.0,0.00045868]
[1741022443872,0.220767,90593.0,90590.0,0.00745868]
[1741022446028,0.7642391,90591.0,90590.0,0.00745868]
[1741022446228,0.7642391,90591.0,90590.0,0.01445868]
[1741022446953,0.7642391,90591.0,90590.0,0.00745868]
[1741022447165,0.7642391,90591.0,90590.0,0.01445868]
[1741022447406,0.5986601,90591.0,90590.0,0.01445868]
[1741022447824,0.7642391,90591.0,90590.0,0.01445868]
[1741022449598,0.5986601,90591.0,90590.0,0.01445868]
[1741022449839,0.7642391,90591.0,90590.0,0.01445868]
[1741022452644,0.5986601,90591.0,90590.0,0.01445868]
[1741022452825,0.7642391,90591.0,90590.0,0.00745868]
[1741022453021,0.61596405,90591.0,90590.0,0.01045868]
[1741022453430,0.61596405,90591.0,90590.0,0.17603968]
[1741022453743,0.34566405,90591.0,90590.0,0.18479113]
[1741022453945,0.34566405,90591.0,90590.0,0.18379113]
[1741022454144,0.34566405,90591.0,90590.0,0.01821013]
[1741022454387,0.34070395,90591.0,90590.0,0.02221013]
[1741022454544,0.34070395,90591.0,90590.0,0.01821013]
[1741022454748,0.34562313,90591.0,90590.0,0.01821013]
[1741022455002,0.34562313,90591.0,90590.0,0.04585228]
[1741022455185,0.34562313,90591.0,90590.0,0.03885228]
[1741022455485,0.34562313,90591.0,90590.0,0.04585228]
[1741022455652,0.34562313,90591.0,90590.0,0.03885228]
[1741022455850,0.34562313,90591.0,90590.0,0.02110083]
[1741022456039,0.34562313,90591.0,90590.0,0.02810083]
[1741022456239,0.34170395,90591.0,90590.0,0.03510083]
[1741022456460,0.34170395,90591.0,90590.0,0.04670937]
[1741022456667,0.32831918,90591.0,90590.0,0.20529037]
[1741022457205,0.32831918,90591.0,90590.0,0.21229037]
[1741022457206,0.32931918,90591.0,90590.0,0.21229037]
[1741022458066,0.00591918,90591.0,90590.0,1.68076299]
[1741022458290,0.00164172,90591.0,90590.0,2.35020199]
[1741022458491,0.3234,90629.0,90628.0,0.165511]
[1741022458706,0.3234,90629.0,90606.0,0.3]
[1741022458707,0.3234,90630.0,90626.0,0.165515]
[1741022458927,0.00461364,90629.0,90627.0,0.165513]
[1741022459114,0.00461364,90629.0,90626.0,0.01188649]
[1741022459438,0.00461364,90629.0,90590.0,0.29997495]
[1741022459439,0.00461364,90629.0,90611.0,0.3]
[1741022459573,0.00461364,90629.0,90590.0,0.48157231]
[1741022459574,0.00461364,90629.0,90617.0,0.3]
[1741022459779,0.00461364,90629.0,90621.0,0.165522]
[1741022459780,0.00471824,90629.0,90621.0,0.165522]
[1741022460017,0.00471824,90629.0,90617.0,0.3]
[1741022460589,0.00471824,90629.0,90611.0,0.01137712]
[1741022460828,0.00471824,90629.0,90628.0,0.002]